OrganisationURI,OrganisationLabel,Organisation Unit,TransactionNumber,Invoice Ref.,Beneficiary Name,Expense Type,Purpose,Payment Date,Amount
https://opendatacommunities.org/doc/district-council/cheltenham ,Cheltenham Borough Council,Big Local Project,14085848,183,2MD Regeneration Ltd,R6280-COM104,Grants,09/04/2021,"2,200.00 "
https://opendatacommunities.org/doc/district-council/cheltenham ,Cheltenham Borough Council,Income and Expenditure on Investment Properties and Changes in Their Fair Value,14085890,1501,360 Contract Services Ltd,R2083-FIE040,R&M of Build - Routine,16/04/2021,750.00 
https://opendatacommunities.org/doc/district-council/cheltenham ,Cheltenham Borough Council,Income and Expenditure on Investment Properties and Changes in Their Fair Value,14085913,1524,360 Contract Services Ltd,R2083-FIE040,R&M of Build - Routine,16/04/2021,"6,730.00 "
https://opendatacommunities.org/doc/district-council/cheltenham ,Cheltenham Borough Council,Fire Protection,14086018,413865/A,A & E Fire and Security Ltd,C1107-CAH015,Building Works,30/04/2021,"3,993.30 "
https://opendatacommunities.org/doc/district-council/cheltenham ,Cheltenham Borough Council,Repairs and Maintenance,14085918,415369,A & E Fire and Security Ltd,R2042-HRA100,R & M of Build Fire Systems,23/04/2021,"1,430.70 "
https://opendatacommunities.org/doc/district-council/cheltenham ,Cheltenham Borough Council,Art Gallery & Museum Repairs & Maintenance,14086148,415706,A & E Fire and Security Ltd,R2083-CUL117,R&M of Build - Routine,30/04/2021,514.89 
https://opendatacommunities.org/doc/district-council/cheltenham ,Cheltenham Borough Council,Press & PR/Communications,14085952,INV24519,Access Intelligence Media & Communications Limited T/A Vuelio,R4534-SUP018,IT - Maint Agreements,16/04/2021,"7,420.00 "
https://opendatacommunities.org/doc/district-council/cheltenham ,Cheltenham Borough Council,Development Costs - S106 Prestbury,14085554,9335 2 20 99,AFA Special Projects Limited,C1111-CAH080,Clerk of Works,09/04/2021,"2,000.00 "
https://opendatacommunities.org/doc/district-council/cheltenham ,Cheltenham Borough Council,Door Entry,14086205,39240,Allhands Limited T/A Harrold Jones Services,C1107-CAH010,Building Works,30/04/2021,"15,768.20 "
https://opendatacommunities.org/doc/district-council/cheltenham ,Cheltenham Borough Council,Individual Electoral Registration,14085893,32818,Alpha Response Print & Mail Limited,R4300-ELE010,Printing - Services,16/04/2021,673.48 
https://opendatacommunities.org/doc/district-council/cheltenham ,Cheltenham Borough Council,Registration of Electors,14085893,32818,Alpha Response Print & Mail Limited,R4300-ELE001,Printing - Services,16/04/2021,744.81 
https://opendatacommunities.org/doc/district-council/cheltenham ,Cheltenham Borough Council,Registration of Electors,14085892,32822,Alpha Response Print & Mail Limited,R4300-ELE001,Printing - Services,16/04/2021,536.55 
https://opendatacommunities.org/doc/district-council/cheltenham ,Cheltenham Borough Council,Cemetery & Crematorium Repairs & Maintenance,14085738,1206,Ardagh Management Limited,R2008-CCM111,R & M of Build - Reactive Repairs,09/04/2021,"4,300.00 "
https://opendatacommunities.org/doc/district-council/cheltenham ,Cheltenham Borough Council,Pittville Pump Room Repairs & Maintenance,14085809,1208,Ardagh Management Limited,R2004-CUL113,R & M of Build Programmed,09/04/2021,"3,987.50 "
https://opendatacommunities.org/doc/district-council/cheltenham ,Cheltenham Borough Council,Pittville Pump Room Repairs & Maintenance,14085808,1209,Ardagh Management Limited,R2008-CUL113,R & M of Build - Reactive Repairs,09/04/2021,"3,779.00 "
https://opendatacommunities.org/doc/district-council/cheltenham ,Cheltenham Borough Council,"Cemetery, Crematorium and Churchyards",14084846,32031,Arkell and Hurcombe Limited,R4011-CCM001,Goods For Resale,30/04/2021,"1,007.00 "
https://opendatacommunities.org/doc/district-council/cheltenham ,Cheltenham Borough Council,"Cemetery, Crematorium and Churchyards",14086067,32124,Arkell and Hurcombe Limited,R4011-CCM001,Goods For Resale,23/04/2021,"1,100.00 "
https://opendatacommunities.org/doc/district-council/cheltenham ,Cheltenham Borough Council,Development Control - Applications,14086133,135694,Asbri Planning Limited,R4400-DEV001,Services - Professional Fees,30/04/2021,"7,800.00 "
https://opendatacommunities.org/doc/district-council/cheltenham ,Cheltenham Borough Council,Income and Expenditure on Investment Properties and Changes in Their Fair Value,14085910,TW/2206,Bear Associates Surveyors Limited,R4401-FIE040,Services - Fees and Charges,16/04/2021,"1,250.00 "
https://opendatacommunities.org/doc/district-council/cheltenham ,Cheltenham Borough Council,Town Hall Repairs & Maintenance,14086012,INV-0928,BEMS (Controls) Limited T/A BEMS Energy,R2083-CUL112,R&M of Build - Routine,23/04/2021,"1,044.00 "
https://opendatacommunities.org/doc/district-council/cheltenham ,Cheltenham Borough Council,Treasury Management,14085904,BGC-Mar-2021-00003138,BGC European Holdings,R4447-COR006,Brokerage Fees,16/04/2021,"2,520.55 "
https://opendatacommunities.org/doc/district-council/cheltenham ,Cheltenham Borough Council,Parks & Gardens Operations,14085881,618823,Boningale Limited,R2075-OPS001,Grounds Maintenance - Contract,16/04/2021,"4,026.30 "
https://opendatacommunities.org/doc/district-council/cheltenham ,Cheltenham Borough Council,Debtors,14085982,UKINV-245139,Bottomline Technologies Europe Limited (Security Print),R4300-SUP012,Printing - Services,16/04/2021,519.00 
https://opendatacommunities.org/doc/district-council/cheltenham ,Cheltenham Borough Council,Income and Expenditure on Investment Properties and Changes in Their Fair Value,14085872,954753793,British Gas Business,R2100-FIE040,Electricity,16/04/2021,674.93 
https://opendatacommunities.org/doc/district-council/cheltenham ,Cheltenham Borough Council,Repairs and Maintenance,14085762,SI00059327,British Gas Social Housing Ltd t/a PH Jones,R2040-HRA100,R & M of Build Central Heating,09/04/2021,"2,118.25 "
https://opendatacommunities.org/doc/district-council/cheltenham ,Cheltenham Borough Council,Repairs and Maintenance,14085763,SI00059333,British Gas Social Housing Ltd t/a PH Jones,R2040-HRA100,R & M of Build Central Heating,09/04/2021,"3,492.90 "
https://opendatacommunities.org/doc/district-council/cheltenham ,Cheltenham Borough Council,New Heating Installations,14085770,SI00059402,British Gas Social Housing Ltd t/a PH Jones,C1107-CAH009,Building Works,09/04/2021,"46,085.74 "
https://opendatacommunities.org/doc/district-council/cheltenham ,Cheltenham Borough Council,New Heating Installations,14085891,SI00059453,British Gas Social Housing Ltd t/a PH Jones,C1107-CAH009,Building Works,16/04/2021,"25,709.81 "
https://opendatacommunities.org/doc/district-council/cheltenham ,Cheltenham Borough Council,New Heating Installations,14085928,SI00059454,British Gas Social Housing Ltd t/a PH Jones,C1107-CAH009,Building Works,16/04/2021,"30,827.70 "
https://opendatacommunities.org/doc/district-council/cheltenham ,Cheltenham Borough Council,New Heating Installations,14085929,SI00059455,British Gas Social Housing Ltd t/a PH Jones,C1107-CAH009,Building Works,16/04/2021,"2,920.00 "
https://opendatacommunities.org/doc/district-council/cheltenham ,Cheltenham Borough Council,New Heating Installations,14085930,SI00059466,British Gas Social Housing Ltd t/a PH Jones,C1107-CAH009,Building Works,16/04/2021,"32,337.91 "
https://opendatacommunities.org/doc/district-council/cheltenham ,Cheltenham Borough Council,New Heating Installations,14085931,SI00059513,British Gas Social Housing Ltd t/a PH Jones,C1107-CAH009,Building Works,16/04/2021,"31,012.50 "
https://opendatacommunities.org/doc/district-council/cheltenham ,Cheltenham Borough Council,Repairs and Maintenance,14085933,SI00059530,British Gas Social Housing Ltd t/a PH Jones,R2016-HRA100,R & M of Build Void Repairs,16/04/2021,560.32 
https://opendatacommunities.org/doc/district-council/cheltenham ,Cheltenham Borough Council,Repairs and Maintenance,14085932,SI00059531,British Gas Social Housing Ltd t/a PH Jones,R2016-HRA100,R & M of Build Void Repairs,16/04/2021,696.64 
https://opendatacommunities.org/doc/district-council/cheltenham ,Cheltenham Borough Council,New Heating Installations,14086120,SI00059594,British Gas Social Housing Ltd t/a PH Jones,C1107-CAH009,Building Works,30/04/2021,"24,503.92 "
https://opendatacommunities.org/doc/district-council/cheltenham ,Cheltenham Borough Council,Repairs and Maintenance,14086121,SI00059607,British Gas Social Housing Ltd t/a PH Jones,R2040-HRA100,R & M of Build Central Heating,30/04/2021,"3,376.47 "
https://opendatacommunities.org/doc/district-council/cheltenham ,Cheltenham Borough Council,Repairs and Maintenance,14085998,SI00059608,British Gas Social Housing Ltd t/a PH Jones,R2040-HRA100,R & M of Build Central Heating,16/04/2021,"20,789.39 "
https://opendatacommunities.org/doc/district-council/cheltenham ,Cheltenham Borough Council,Repairs and Maintenance,14086122,SI00059613,British Gas Social Housing Ltd t/a PH Jones,R2040-HRA100,R & M of Build Central Heating,30/04/2021,"1,736.93 "
https://opendatacommunities.org/doc/district-council/cheltenham ,Cheltenham Borough Council,Repairs and Maintenance,14086125,SI00059623,British Gas Social Housing Ltd t/a PH Jones,R2040-HRA100,R & M of Build Central Heating,30/04/2021,698.58 
https://opendatacommunities.org/doc/district-council/cheltenham ,Cheltenham Borough Council,Repairs and Maintenance,14086123,SI00059625,British Gas Social Housing Ltd t/a PH Jones,R2040-HRA100,R & M of Build Central Heating,30/04/2021,"2,065.57 "
https://opendatacommunities.org/doc/district-council/cheltenham ,Cheltenham Borough Council,Repairs and Maintenance,14086158,SI00059654,British Gas Social Housing Ltd t/a PH Jones,R2040-HRA100,R & M of Build Central Heating,30/04/2021,"1,325.69 "
https://opendatacommunities.org/doc/district-council/cheltenham ,Cheltenham Borough Council,Repairs and Maintenance,14086157,SI00059695,British Gas Social Housing Ltd t/a PH Jones,R2040-HRA100,R & M of Build Central Heating,30/04/2021,"1,635.52 "
https://opendatacommunities.org/doc/district-council/cheltenham ,Cheltenham Borough Council,Repairs and Maintenance,14086156,SI00059696,British Gas Social Housing Ltd t/a PH Jones,R2040-HRA100,R & M of Build Central Heating,30/04/2021,"2,056.93 "
https://opendatacommunities.org/doc/district-council/cheltenham ,Cheltenham Borough Council,New Heating Installations,14086282,SI00059698,British Gas Social Housing Ltd t/a PH Jones,C1107-CAH009,Building Works,30/04/2021,"11,526.79 "
https://opendatacommunities.org/doc/district-council/cheltenham ,Cheltenham Borough Council,New Heating Installations,14086281,SI00059703,British Gas Social Housing Ltd t/a PH Jones,C1107-CAH009,Building Works,30/04/2021,"5,909.26 "
https://opendatacommunities.org/doc/district-council/cheltenham ,Cheltenham Borough Council,Income and Expenditure on Investment Properties and Changes in Their Fair Value,14085712,GLO-21-61593,Bruton Knowles,R4400-FIE040,Services - Professional Fees,09/04/2021,"1,500.00 "
https://opendatacommunities.org/doc/district-council/cheltenham ,Cheltenham Borough Council,Homelessness,14085951,REDACTED,C G T Lettings Limited,R6280-HOM001,Grants,16/04/2021,950.00 
https://opendatacommunities.org/doc/district-council/cheltenham ,Cheltenham Borough Council,Recreation Centre Repairs & Maintenance,14086019,301267/2021/3,Centrica Business Solutions (Generations) limited,R2100-REC111,Electricity,23/04/2021,"2,266.41 "
https://opendatacommunities.org/doc/district-council/cheltenham ,Cheltenham Borough Council,Big Local Project,14085942,CM3d202102,ChangeMaker 3D Ltd,R6280-COM104,Grants,16/04/2021,"3,750.00 "
https://opendatacommunities.org/doc/district-council/cheltenham ,Cheltenham Borough Council,Modernisation,14086180,INV-2700,Chapel House Training & Consultancy Ltd,R4411-SUP107,Consultancy Fees,30/04/2021,"10,000.00 "
https://opendatacommunities.org/doc/district-council/cheltenham ,Cheltenham Borough Council,Community Welfare Grants,14086098,SIS1 5/21,Cheltenham Arts Council,R6280-GBD001,Grants,23/04/2021,"5,000.00 "
https://opendatacommunities.org/doc/district-council/cheltenham ,Cheltenham Borough Council,Cheltenham Business Improvement District (BID) Levy,14086579,CBID0126,Cheltenham Bid Limited,R4974-HLD160,Reimbursement to other L.A.'s,23/04/2021,"16,047.93 "
https://opendatacommunities.org/doc/district-council/cheltenham ,Cheltenham Borough Council,Community Welfare Grants,14085855,COMMUNITY RESILIENCE2 CHAC,Cheltenham Housing Aid Centre,R6280-GBD001,Grants,16/04/2021,"2,000.00 "
https://opendatacommunities.org/doc/district-council/cheltenham ,Cheltenham Borough Council,Community Safety (Crime Reduction),14085966,180321,Cheltenham Safe,R4409-CCR001,Partnership Staff Fees,23/04/2021,"1,000.00 "
https://opendatacommunities.org/doc/district-council/cheltenham ,Cheltenham Borough Council,Trees,14086143,CTS2020-959,Cheltenham Tree Services Limited,R2070-PLP006,Tree Work,30/04/2021,"2,750.00 "
https://opendatacommunities.org/doc/district-council/cheltenham ,Cheltenham Borough Council,Trees,14085766,1832,Chris Arnold Tree Surgery,R2070-PLP006,Tree Work,09/04/2021,"9,900.00 "
https://opendatacommunities.org/doc/district-council/cheltenham ,Cheltenham Borough Council,Bulking Facility,14086270,113728,Clearpoint Recycling Ltd,R4401-RYC008,Services - Fees and Charges,30/04/2021,"1,034.60 "
https://opendatacommunities.org/doc/district-council/cheltenham ,Cheltenham Borough Council,Bulking Facility,14086265,113729,Clearpoint Recycling Ltd,R4401-RYC008,Services - Fees and Charges,30/04/2021,"1,320.20 "
https://opendatacommunities.org/doc/district-council/cheltenham ,Cheltenham Borough Council,Bulking Facility,14086269,113730,Clearpoint Recycling Ltd,R4401-RYC008,Services - Fees and Charges,30/04/2021,"1,159.20 "
https://opendatacommunities.org/doc/district-council/cheltenham ,Cheltenham Borough Council,Bulking Facility,14086272,113731,Clearpoint Recycling Ltd,R4401-RYC008,Services - Fees and Charges,30/04/2021,"1,349.60 "
https://opendatacommunities.org/doc/district-council/cheltenham ,Cheltenham Borough Council,Bulking Facility,14086266,113732,Clearpoint Recycling Ltd,R4401-RYC008,Services - Fees and Charges,30/04/2021,"1,360.80 "
https://opendatacommunities.org/doc/district-council/cheltenham ,Cheltenham Borough Council,Bulking Facility,14086264,113733,Clearpoint Recycling Ltd,R4401-RYC008,Services - Fees and Charges,30/04/2021,"1,134.00 "
https://opendatacommunities.org/doc/district-council/cheltenham ,Cheltenham Borough Council,Bulking Facility,14086263,113734,Clearpoint Recycling Ltd,R4401-RYC008,Services - Fees and Charges,30/04/2021,"1,136.80 "
https://opendatacommunities.org/doc/district-council/cheltenham ,Cheltenham Borough Council,Bulking Facility,14086271,113746,Clearpoint Recycling Ltd,R4401-RYC008,Services - Fees and Charges,30/04/2021,"1,916.60 "
https://opendatacommunities.org/doc/district-council/cheltenham ,Cheltenham Borough Council,Vehicles & recycling equipment,14085883,92907,CMS SupaTrak Ltd,C4000-CAP301,Acquisition of Equipment,23/04/2021,"16,377.80 "
https://opendatacommunities.org/doc/district-council/cheltenham ,Cheltenham Borough Council,Cheltenham Municipal Offices,14086096,157,Corinium Fire Safety Consultancy Limited,R2005-ADB101,R & M of Build Health & Safety,23/04/2021,"1,215.00 "
https://opendatacommunities.org/doc/district-council/cheltenham ,Cheltenham Borough Council,Planning Policy,14085885,INV-1017,Cotswold Conservation Board,R6280-PLP001,Grants,16/04/2021,"3,774.00 "
https://opendatacommunities.org/doc/district-council/cheltenham ,Cheltenham Borough Council,Flood Risk Management,14086041,C36100,Cotswold Drain Service Limited,R5001-FRM101,TPP - Major External Contractors,23/04/2021,520.00 
https://opendatacommunities.org/doc/district-council/cheltenham ,Cheltenham Borough Council,"Cemetery, Crematorium and Churchyards",14086142,43438,Cotswold Estates and Gardens Limited,R2076-CCM001,Grounds Maintenance - Non Contract,30/04/2021,900.00 
https://opendatacommunities.org/doc/district-council/cheltenham ,Cheltenham Borough Council,Sports & Open Spaces Operations,14086177,25692,Cotswold Stone Quarries Limited,R2075-OPS002,Grounds Maintenance - Contract,30/04/2021,"1,799.28 "
https://opendatacommunities.org/doc/district-council/cheltenham ,Cheltenham Borough Council,Development costs - Monkscroft,14085553,17769,Cotswold Surveyors Limited,C1114-CAH061,Valuation Fees,16/04/2021,"2,950.00 "
https://opendatacommunities.org/doc/district-council/cheltenham ,Cheltenham Borough Council,Allotments,14085732,INV-3745,Cotswold TV Ltd,R4539-OPS004,IT - Consultancy,09/04/2021,542.50 
https://opendatacommunities.org/doc/district-council/cheltenham ,Cheltenham Borough Council,Oakley Resource Centre,14086214,15185,County Clean Limited,R2700-COM101,Contract Cleaning,30/04/2021,"1,503.04 "
https://opendatacommunities.org/doc/district-council/cheltenham ,Cheltenham Borough Council,Structural / Damp Works,14085726,48086,Curtins Consulting Limited,C1105-CAH016,Design Services,09/04/2021,"1,912.50 "
https://opendatacommunities.org/doc/district-council/cheltenham ,Cheltenham Borough Council,Structural / Damp Works,14085764,48154,Curtins Consulting Limited,C1107-CAH016,Building Works,09/04/2021,"1,150.00 "
https://opendatacommunities.org/doc/district-council/cheltenham ,Cheltenham Borough Council,Repairs and Maintenance,14086030,50718,Dantek Environmental Services (UK) Limited,R2048-HRA100,R & M of Build Legionellla,23/04/2021,640.00 
https://opendatacommunities.org/doc/district-council/cheltenham ,Cheltenham Borough Council,Urban Design,14086139,2022,Delib Limited,R4531-URB101,IT - Purchase of Software,30/04/2021,"17,995.00 "
https://opendatacommunities.org/doc/district-council/cheltenham ,Cheltenham Borough Council,Housing Benefit Administration,14086070,7246587,DHL Parcel UK Limited T/A UK Mail,R4520-HBA001,Postages - stamps,23/04/2021,"1,550.01 "
https://opendatacommunities.org/doc/district-council/cheltenham ,Cheltenham Borough Council,Council Tax Collection,14085845,7272699,DHL Parcel UK Limited T/A UK Mail,R4520-LTC001,Postages - stamps,09/04/2021,537.98 
https://opendatacommunities.org/doc/district-council/cheltenham ,Cheltenham Borough Council,Corporate Subscriptions,14086228,DCN/DI/2122/030,District Councils Network,R4701-DRM008,Subscriptions,30/04/2021,"1,759.00 "
https://opendatacommunities.org/doc/district-council/cheltenham ,Cheltenham Borough Council,Environmental Health General,14085778,27827,Enviro Technology Services plc,R4003-REG001,Tools & Equipment - R & M,09/04/2021,"8,190.00 "
https://opendatacommunities.org/doc/district-council/cheltenham ,Cheltenham Borough Council,Recycling Centres,14085993,B00007105T,Environment Agency,R4402-RYC004,Services - General Licences,23/04/2021,"1,053.55 "
https://opendatacommunities.org/doc/district-council/cheltenham ,Cheltenham Borough Council,Oakley Resource Centre,14085864,H19AAA2896,E-on Energy,R2100-COM101,Electricity,16/04/2021,"1,144.21 "
https://opendatacommunities.org/doc/district-council/cheltenham ,Cheltenham Borough Council,Income and Expenditure on Investment Properties and Changes in Their Fair Value,14085921,H19B02569B,E-on Energy,R2101-FIE040,Gas,16/04/2021,"2,386.56 "
https://opendatacommunities.org/doc/district-council/cheltenham ,Cheltenham Borough Council,Income and Expenditure on Investment Properties and Changes in Their Fair Value,14086099,4764,ESOS Energy Limited,R2106-FIE040,Energy Consrvation,23/04/2021,570.00 
https://opendatacommunities.org/doc/district-council/cheltenham ,Cheltenham Borough Council,Recreation Centre Repairs & Maintenance,14085926,18899,F T Leisure Limited,R2083-REC111,R&M of Build - Routine,16/04/2021,"2,500.00 "
https://opendatacommunities.org/doc/district-council/cheltenham ,Cheltenham Borough Council,Recreation Centre Repairs & Maintenance,14085925,18902,F T Leisure Limited,R2083-REC111,R&M of Build - Routine,16/04/2021,"1,200.00 "
https://opendatacommunities.org/doc/district-council/cheltenham ,Cheltenham Borough Council,Flood Risk Management,14085844,1447,Firmacore Limited,R5001-FRM101,TPP - Major External Contractors,16/04/2021,"4,647.97 "
https://opendatacommunities.org/doc/district-council/cheltenham ,Cheltenham Borough Council,Flood Risk Management,14085844,1447,Firmacore Limited,R5001-FRM101,TPP - Major External Contractors,16/04/2021,"-4,647.97 "
https://opendatacommunities.org/doc/district-council/cheltenham ,Cheltenham Borough Council,Flood Risk Management,14085844,1447,Firmacore Limited,R5001-FRM101,TPP - Major External Contractors,16/04/2021,"4,647.97 "
https://opendatacommunities.org/doc/district-council/cheltenham ,Cheltenham Borough Council,Car Parks - Off Street Operations,14085878,1128,First Arb Tree Services,R2070-CPK001,Tree Work,16/04/2021,"2,260.00 "
https://opendatacommunities.org/doc/district-council/cheltenham ,Cheltenham Borough Council,Cyber Business Park,14086195,108212,GCHQ,R4411-PLP105,Consultancy Fees,30/04/2021,"56,137.28 "
https://opendatacommunities.org/doc/district-council/cheltenham ,Cheltenham Borough Council,Cyber Business Park,14085879,455,GFirst LEP CIC,R4400-PLP105,Services - Professional Fees,09/04/2021,"4,954.61 "
https://opendatacommunities.org/doc/district-council/cheltenham ,Cheltenham Borough Council,Car Parks - Off Street Operations,14085802,57260,Glevum Security Limited,R4401-CPK001,Services - Fees and Charges,16/04/2021,"1,078.00 "
https://opendatacommunities.org/doc/district-council/cheltenham ,Cheltenham Borough Council,Gloucestershire Airport,14085989,13606083,Gloucester City Council,R4400-AIR101,Services - Professional Fees,16/04/2021,"3,500.00 "
https://opendatacommunities.org/doc/district-council/cheltenham ,Cheltenham Borough Council,Human Resources,14085836,GCS/2021/1869,Gloucestershire Counselling Service,R4442-SUP003,Care Counselling Fees,09/04/2021,560.00 
https://opendatacommunities.org/doc/district-council/cheltenham ,Cheltenham Borough Council,High Street re-opening,14086007,1800604349,Gloucestershire County Council,R4400-COV020,Services - Professional Fees,23/04/2021,"3,587.91 "
https://opendatacommunities.org/doc/district-council/cheltenham ,Cheltenham Borough Council,High Street re-opening,14086006,1800604350,Gloucestershire County Council,R4400-COV020,Services - Professional Fees,23/04/2021,"6,155.66 "
https://opendatacommunities.org/doc/district-council/cheltenham ,Cheltenham Borough Council,Emergency Planning,14085995,1800604845,Gloucestershire County Council,R4400-EMP001,Services - Professional Fees,16/04/2021,"2,652.00 "
https://opendatacommunities.org/doc/district-council/cheltenham ,Cheltenham Borough Council,Big Local Project,14086131,5690,Gloucestershire Rural Community Council,R6280-COM104,Grants,30/04/2021,"1,268.91 "
https://opendatacommunities.org/doc/district-council/cheltenham ,Cheltenham Borough Council,Supervision and Management,14085586,41775,Gooch Group Limited,R2702-HRA110,Pest Control,09/04/2021,644.00 
https://opendatacommunities.org/doc/district-council/cheltenham ,Cheltenham Borough Council,Repairs and Maintenance,14085724,41890,Gooch Group Limited,R2700-HRA100,Contract Cleaning,09/04/2021,688.57 
https://opendatacommunities.org/doc/district-council/cheltenham ,Cheltenham Borough Council,Urban Design,14086238,49652,Greenfields Garden Services Limited,R4010-URB101,Materials - Other Materials,30/04/2021,"1,754.00 "
https://opendatacommunities.org/doc/district-council/cheltenham ,Cheltenham Borough Council,Income and Expenditure on Investment Properties and Changes in Their Fair Value,14085917,12770,H & W Facilities Management Limited,R2700-FIE040,Contract Cleaning,16/04/2021,582.83 
https://opendatacommunities.org/doc/district-council/cheltenham ,Cheltenham Borough Council,Community Welfare Grants,14086247,COMMUNITY RESILIENCE2 HWP,Hesters Way Partnership Limited,R6280-GBD001,Grants,30/04/2021,"2,000.00 "
https://opendatacommunities.org/doc/district-council/cheltenham ,Cheltenham Borough Council,Green Waste,14085796,25921,Hoge 100 Business Systems Limited,R4534-RYC002,IT - Maint Agreements,16/04/2021,"4,118.00 "
https://opendatacommunities.org/doc/district-council/cheltenham ,Cheltenham Borough Council,Development Control - Applications,14085992,CBC/MAH/05,Holmesplanning Services Ltd,R4400-DEV001,Services - Professional Fees,23/04/2021,"10,000.00 "
https://opendatacommunities.org/doc/district-council/cheltenham ,Cheltenham Borough Council,Registration of Electors,14085777,115763,Idox Software Limited,R4531-ELE001,IT - Purchase of Software,09/04/2021,"10,350.61 "
https://opendatacommunities.org/doc/district-council/cheltenham ,Cheltenham Borough Council,District Elections,14085777,115763,Idox Software Limited,R4531-ELE002,IT - Purchase of Software,09/04/2021,"10,350.62 "
https://opendatacommunities.org/doc/district-council/cheltenham ,Cheltenham Borough Council,Regulatory & Environmental Services Transformation,14085773,7032922,Idox Software Limited,R4401-SUP140,Services - Fees and Charges,09/04/2021,"2,850.00 "
https://opendatacommunities.org/doc/district-council/cheltenham ,Cheltenham Borough Council,Regulatory & Environmental Services Transformation,14085774,7032923,Idox Software Limited,R4401-SUP140,Services - Fees and Charges,09/04/2021,"3,325.00 "
https://opendatacommunities.org/doc/district-council/cheltenham ,Cheltenham Borough Council,Lift Refurbishment,14086245,26196,ILECS Limited,C1107-CAH011,Building Works,30/04/2021,"6,600.00 "
https://opendatacommunities.org/doc/district-council/cheltenham ,Cheltenham Borough Council,Car Parks - Off Street Operations,14086127,INV0000001285,Imperial Civil Enforcement Solutions Limited,R4531-CPK001,IT - Purchase of Software,30/04/2021,"13,036.20 "
https://opendatacommunities.org/doc/district-council/cheltenham ,Cheltenham Borough Council,No Child Left Behind,14085566,156,Infrastar Limited,R4530-GBD002,IT - Purchase of Hardware,30/04/2021,"13,453.00 "
https://opendatacommunities.org/doc/district-council/cheltenham ,Cheltenham Borough Council,Development Costs - Newton Road,14085906,IN024592,J Harper & Sons (Leominster) Limited,C1107-CAH058,Building Works,16/04/2021,"8,253.23 "
https://opendatacommunities.org/doc/district-council/cheltenham ,Cheltenham Borough Council,Development Costs - Newton Road,14085534,IN024658,J Harper & Sons (Leominster) Limited,C1107-CAH058,Building Works,01/04/2021,"-5,243.70 "
https://opendatacommunities.org/doc/district-council/cheltenham ,Cheltenham Borough Council,Development Costs - Newton Road,14085534,IN024658,J Harper & Sons (Leominster) Limited,C1107-CAH058,Building Works,01/04/2021,"5,243.70 "
https://opendatacommunities.org/doc/district-council/cheltenham ,Cheltenham Borough Council,Development Costs - Newton Road,14085534,IN024658,J Harper & Sons (Leominster) Limited,C1107-CAH058,Building Works,01/04/2021,"5,243.70 "
https://opendatacommunities.org/doc/district-council/cheltenham ,Cheltenham Borough Council,Parks & Gardens Operations,14085781,2167,Jayson R C Bayliss,R4010-OPS001,Materials - Other Materials,16/04/2021,"2,697.50 "
https://opendatacommunities.org/doc/district-council/cheltenham ,Cheltenham Borough Council,Parks & Gardens Operations,14085781,2167,Jayson R C Bayliss,R4010-OPS001,Materials - Other Materials,16/04/2021,"1,312.50 "
https://opendatacommunities.org/doc/district-council/cheltenham ,Cheltenham Borough Council,Parks & Gardens Operations,14085781,2167,Jayson R C Bayliss,R4010-OPS001,Materials - Other Materials,16/04/2021,"-4,010.00 "
https://opendatacommunities.org/doc/district-council/cheltenham ,Cheltenham Borough Council,Parks & Gardens Operations,14085781,2167,Jayson R C Bayliss,R4010-OPS001,Materials - Other Materials,16/04/2021,"4,010.00 "
https://opendatacommunities.org/doc/district-council/cheltenham ,Cheltenham Borough Council,Parks & Gardens Operations,14086047,2168,Jayson R C Bayliss,R2075-OPS001,Grounds Maintenance - Contract,23/04/2021,570.00 
https://opendatacommunities.org/doc/district-council/cheltenham ,Cheltenham Borough Council,Parks & Gardens Operations,14086047,2168,Jayson R C Bayliss,R2075-OPS001,Grounds Maintenance - Contract,23/04/2021,600.00 
https://opendatacommunities.org/doc/district-council/cheltenham ,Cheltenham Borough Council,Parks & Gardens Operations,14086047,2168,Jayson R C Bayliss,R2075-OPS001,Grounds Maintenance - Contract,23/04/2021,-600.00 
https://opendatacommunities.org/doc/district-council/cheltenham ,Cheltenham Borough Council,Supervision and Management,14085859,RND300321/comb-19,John Gillman & Sons (Electrical) Limited (Gillmans Appliance),R4002-HRA110,Tools & Equipment - Lease/Rental,09/04/2021,"1,950.78 "
https://opendatacommunities.org/doc/district-council/cheltenham ,Cheltenham Borough Council,External Improvements,14085782,7069,Joyner P A Ltd,C1107-CAH003,Building Works,09/04/2021,"140,473.43 "
https://opendatacommunities.org/doc/district-council/cheltenham ,Cheltenham Borough Council,External Improvements,14085840,7076,Joyner P A Ltd,C1107-CAH003,Building Works,16/04/2021,"124,484.21 "
https://opendatacommunities.org/doc/district-council/cheltenham ,Cheltenham Borough Council,Cyber Business Park,14085944,INV-5161,Kava Media Ltd,R4318-PLP105,Photography & Promotional Materials/Design,16/04/2021,"7,720.00 "
https://opendatacommunities.org/doc/district-council/cheltenham ,Cheltenham Borough Council,Option Appraisal Voids,14085759,24786,Kendall Kingscott Limited,C1107-CAH002,Building Works,09/04/2021,750.00 
https://opendatacommunities.org/doc/district-council/cheltenham ,Cheltenham Borough Council,Climate Change,14086005,4081,Liftshare.com Limited,R4400-CCC001,Services - Professional Fees,16/04/2021,"2,232.00 "
https://opendatacommunities.org/doc/district-council/cheltenham ,Cheltenham Borough Council,ICT,14085969,16003474,LinchPin Networks Limited,R4548-SUP005,IT - Cabling and Network,23/04/2021,988.50 
https://opendatacommunities.org/doc/district-council/cheltenham ,Cheltenham Borough Council,ICT,14085970,16003475,LinchPin Networks Limited,R4548-SUP005,IT - Cabling and Network,23/04/2021,988.50 
https://opendatacommunities.org/doc/district-council/cheltenham ,Cheltenham Borough Council,ICT,14086087,16003493,LinchPin Networks Limited,R4548-SUP005,IT - Cabling and Network,23/04/2021,"1,977.00 "
https://opendatacommunities.org/doc/district-council/cheltenham ,Cheltenham Borough Council,Supervision and Management,14084718,210,Lisa Westerman Consultancy (LWCL) Limited,R4411-HRA110,Consultancy Fees,09/04/2021,995.00 
https://opendatacommunities.org/doc/district-council/cheltenham ,Cheltenham Borough Council,Parks & Gardens Operations,14086244,3052,Lushglen Exterior Furniture Renovation Services,R2075-OPS001,Grounds Maintenance - Contract,30/04/2021,"1,375.50 "
https://opendatacommunities.org/doc/district-council/cheltenham ,Cheltenham Borough Council,Corporate Subscriptions,14086078,8500638966,Manchester City Council,R4701-DRM008,Subscriptions,23/04/2021,960.00 
https://opendatacommunities.org/doc/district-council/cheltenham ,Cheltenham Borough Council,High Street Public Realm Improvements,14085877,3026,Martin Paul Hayes,C1102-CAP205,Landscaping,09/04/2021,894.80 
https://opendatacommunities.org/doc/district-council/cheltenham ,Cheltenham Borough Council,Development costs - Priors Farm,14086093,2771,MHP Design Limited,C1116-CAH051,Other Development Fees,23/04/2021,"1,520.83 "
https://opendatacommunities.org/doc/district-council/cheltenham ,Cheltenham Borough Council,Cyber Business Park,14086084,4000566513,Midlands Land Portfolio Limited,R4400-PLP105,Services - Professional Fees,23/04/2021,"12,530.00 "
https://opendatacommunities.org/doc/district-council/cheltenham ,Cheltenham Borough Council,Repairs and Maintenance,14085797,49374,Morgan Lambert Limited,R2040-HRA100,R & M of Build Central Heating,09/04/2021,"1,540.00 "
https://opendatacommunities.org/doc/district-council/cheltenham ,Cheltenham Borough Council,"Cemetery, Crematorium and Churchyards",14086234,310321,Mr John Sureda,R4401-CCM001,Services - Fees and Charges,30/04/2021,806.62 
https://opendatacommunities.org/doc/district-council/cheltenham ,Cheltenham Borough Council,Supervision and Management,14085658,37,N C Eldridge T/A Eldridge Tree Services,R2070-HRA110,Tree Work,09/04/2021,"2,360.00 "
https://opendatacommunities.org/doc/district-council/cheltenham ,Cheltenham Borough Council,Internal Improvements - Communal,14085787,14167,NKS Contracts (Central) Limited,C1107-CAH035,Building Works,16/04/2021,"36,107.78 "
https://opendatacommunities.org/doc/district-council/cheltenham ,Cheltenham Borough Council,"Cemetery, Crematorium and Churchyards",14085999,58992,Oconnor Construction Company Ltd,R3201-CCM001,Hire of Plant,23/04/2021,967.00 
https://opendatacommunities.org/doc/district-council/cheltenham ,Cheltenham Borough Council,Cyber Business Park,14085943,20080362,Omnigenix,R4411-PLP105,Consultancy Fees,16/04/2021,"9,750.00 "
https://opendatacommunities.org/doc/district-council/cheltenham ,Cheltenham Borough Council,Cheltenham Municipal Offices,14085789,1420612,Otis Limited,R2010-ADB101,R & M of Plant Lifts,16/04/2021,"4,089.43 "
https://opendatacommunities.org/doc/district-council/cheltenham ,Cheltenham Borough Council,Supervision and Management,14086289,63600 49417 230420,OVO Electricity Ltd T/as SSE - Southern Electric (Domestic Bill Payments),R2100-HRA110,Electricity,23/04/2021,689.19 
https://opendatacommunities.org/doc/district-council/cheltenham ,Cheltenham Borough Council,Supervision and Management,14086181,63600 49417 230421,OVO Electricity Ltd T/as SSE - Southern Electric (Domestic Bill Payments),R2100-HRA110,Electricity,30/04/2021,689.19 
https://opendatacommunities.org/doc/district-council/cheltenham ,Cheltenham Borough Council,Supervision and Management,14082751,6360049417 230420,OVO Electricity Ltd T/as SSE - Southern Electric (Domestic Bill Payments),R2100-HRA110,Electricity,09/04/2021,667.00 
https://opendatacommunities.org/doc/district-council/cheltenham ,Cheltenham Borough Council,Car Parks - Off Street R&M,14085866,71465,P & R Heating Limited,R2062-CPK101,R & M of Build Cyclical Electrical Remedials,16/04/2021,"3,194.00 "
https://opendatacommunities.org/doc/district-council/cheltenham ,Cheltenham Borough Council,Income and Expenditure on Investment Properties and Changes in Their Fair Value,14085865,71466,P & R Heating Limited,R2062-FIE040,R & M of Build Cyclical Electrical Remedials,16/04/2021,666.50 
https://opendatacommunities.org/doc/district-council/cheltenham ,Cheltenham Borough Council,Income and Expenditure on Investment Properties and Changes in Their Fair Value,14085860,71469,P & R Heating Limited,R2062-FIE040,R & M of Build Cyclical Electrical Remedials,16/04/2021,866.00 
https://opendatacommunities.org/doc/district-council/cheltenham ,Cheltenham Borough Council,Art Gallery & Museum Repairs & Maintenance,14086028,71476,P & R Heating Limited,R2079-CUL117,Sanitary and Plumbing,23/04/2021,549.21 
https://opendatacommunities.org/doc/district-council/cheltenham ,Cheltenham Borough Council,Art Gallery & Museum Repairs & Maintenance,14086046,71492,P & R Heating Limited,R2080-CUL117,Mechanical Services,23/04/2021,"2,191.20 "
https://opendatacommunities.org/doc/district-council/cheltenham ,Cheltenham Borough Council,Sports & Open Spaces Repairs & Maintenance,14086053,71498,P & R Heating Limited,R2004-OPS122,R & M of Build Programmed,23/04/2021,978.50 
https://opendatacommunities.org/doc/district-council/cheltenham ,Cheltenham Borough Council,Sports & Open Spaces Repairs & Maintenance,14086052,71499,P & R Heating Limited,R2004-OPS122,R & M of Build Programmed,23/04/2021,"1,832.60 "
https://opendatacommunities.org/doc/district-council/cheltenham ,Cheltenham Borough Council,Art Gallery & Museum Repairs & Maintenance,14086048,71500,P & R Heating Limited,R2004-CUL117,R & M of Build Programmed,23/04/2021,937.25 
https://opendatacommunities.org/doc/district-council/cheltenham ,Cheltenham Borough Council,Cemetery & Crematorium Repairs & Maintenance,14086054,71501,P & R Heating Limited,R2004-CCM111,R & M of Build Programmed,23/04/2021,"1,407.68 "
https://opendatacommunities.org/doc/district-council/cheltenham ,Cheltenham Borough Council,Sports & Open Spaces Repairs & Maintenance,14086050,71503,P & R Heating Limited,R2004-OPS122,R & M of Build Programmed,23/04/2021,"2,804.12 "
https://opendatacommunities.org/doc/district-council/cheltenham ,Cheltenham Borough Council,Sports & Open Spaces Repairs & Maintenance,14086049,71504,P & R Heating Limited,R2004-OPS122,R & M of Build Programmed,23/04/2021,"3,118.00 "
https://opendatacommunities.org/doc/district-council/cheltenham ,Cheltenham Borough Council,Town Hall Repairs & Maintenance,14086027,71546,P & R Heating Limited,R2080-CUL112,Mechanical Services,23/04/2021,"2,411.55 "
https://opendatacommunities.org/doc/district-council/cheltenham ,Cheltenham Borough Council,Art Gallery & Museum Repairs & Maintenance,14086163,71551,P & R Heating Limited,R2079-CUL117,Sanitary and Plumbing,30/04/2021,810.00 
https://opendatacommunities.org/doc/district-council/cheltenham ,Cheltenham Borough Council,Art Gallery & Museum Repairs & Maintenance,14086162,71552,P & R Heating Limited,R2079-CUL117,Sanitary and Plumbing,30/04/2021,"1,942.00 "
https://opendatacommunities.org/doc/district-council/cheltenham ,Cheltenham Borough Council,Cheltenham Depot,14086160,71554,P & R Heating Limited,R2080-ADB103,Mechanical Services,30/04/2021,"1,138.00 "
https://opendatacommunities.org/doc/district-council/cheltenham ,Cheltenham Borough Council,Public Conveniences,14086253,71607,P & R Heating Limited,R2062-REG019,R & M of Build Cyclical Electrical Remedials,30/04/2021,548.50 
https://opendatacommunities.org/doc/district-council/cheltenham ,Cheltenham Borough Council,Car Parks - Off Street Operations,14085476,4855,Paybyphone Limited,R4401-CPK001,Services - Fees and Charges,09/04/2021,667.75 
https://opendatacommunities.org/doc/district-council/cheltenham ,Cheltenham Borough Council,Car Parks - Off Street Operations,14086033,5021,Paybyphone Limited,R4401-CPK001,Services - Fees and Charges,30/04/2021,909.83 
https://opendatacommunities.org/doc/district-council/cheltenham ,Cheltenham Borough Council,Property Services,14085876,344111,Pennington Choices,R4400-SUP025,Services - Professional Fees,16/04/2021,"1,600.00 "
https://opendatacommunities.org/doc/district-council/cheltenham ,Cheltenham Borough Council,Minster Innovation Exchange,14085997,PC7117,Perfect Circle JV Limited,C1105-CAP515,Design Services,23/04/2021,"9,666.35 "
https://opendatacommunities.org/doc/district-council/cheltenham ,Cheltenham Borough Council,Cheltenham Municipal Offices,14085826,68137355,Personnel Hygiene Services (PHS Group),R2083-ADB101,R&M of Build - Routine,16/04/2021,"1,720.13 "
https://opendatacommunities.org/doc/district-council/cheltenham ,Cheltenham Borough Council,Cheltenham Depot,14085825,68137356,Personnel Hygiene Services (PHS Group),R4002-ADB103,Tools & Equipment - Lease/Rental,16/04/2021,550.47 
https://opendatacommunities.org/doc/district-council/cheltenham ,Cheltenham Borough Council,Public Conveniences R&M,14085821,68137360,Personnel Hygiene Services (PHS Group),R2083-REG119,R&M of Build - Routine,16/04/2021,633.43 
https://opendatacommunities.org/doc/district-council/cheltenham ,Cheltenham Borough Council,Cheltenham Municipal Offices,14085828,68137372,Personnel Hygiene Services (PHS Group),R2083-ADB101,R&M of Build - Routine,16/04/2021,764.06 
https://opendatacommunities.org/doc/district-council/cheltenham ,Cheltenham Borough Council,Cyber Business Park,14085861,CBC INVOICE NO.4,PICT Consulting Ltd,R4400-PLP105,Services - Professional Fees,09/04/2021,"13,750.00 "
https://opendatacommunities.org/doc/district-council/cheltenham ,Cheltenham Borough Council,Postal Services,14085731,BI021494,Pitney Bowes Limited T/as Pitney Bowes - Purchase Power,R4521-SUP024,Postages - franking machine,09/04/2021,"4,950.00 "
https://opendatacommunities.org/doc/district-council/cheltenham ,Cheltenham Borough Council,Community Welfare Grants,14086065,dbts00011592,Police and Crime Commissioner for Gloucestershire,R6280-GBD001,Grants,30/04/2021,"2,667.45 "
https://opendatacommunities.org/doc/district-council/cheltenham ,Cheltenham Borough Council,Play areas (Section 106),14085454,PPC - S106/3,Prestbury Parish Council,C1100-CAP101,Construction,16/04/2021,"4,920.65 "
https://opendatacommunities.org/doc/district-council/cheltenham ,Cheltenham Borough Council,Cyber Business Park,14085887,3518,Print Out,R4303-PLP105,Printing - Other Consumables,09/04/2021,940.00 
https://opendatacommunities.org/doc/district-council/cheltenham ,Cheltenham Borough Council,Car Parks - Off Street Operations,14086036,184089,Protector Insurance,R4964-CPK001,Insurance Excess,30/04/2021,"1,000.00 "
https://opendatacommunities.org/doc/district-council/cheltenham ,Cheltenham Borough Council,Trees,14086080,202024,Protector Insurance,R4964-PLP006,Insurance Excess,23/04/2021,"1,000.00 "
https://opendatacommunities.org/doc/district-council/cheltenham ,Cheltenham Borough Council,Trees,14086175,207122,Protector Insurance,R4964-PLP006,Insurance Excess,30/04/2021,690.00 
https://opendatacommunities.org/doc/district-council/cheltenham ,Cheltenham Borough Council,Trees,14086201,209794,Protector Insurance,R4964-PLP006,Insurance Excess,30/04/2021,840.00 
https://opendatacommunities.org/doc/district-council/cheltenham ,Cheltenham Borough Council,Publica Business Support Contract,14085790,85003040,Publica Group (Support) Limited,R5500-SUP106,TPP - Publica Contract,23/04/2021,"113,678.16 "
https://opendatacommunities.org/doc/district-council/cheltenham ,Cheltenham Borough Council,Publica Business Support Contract,14085971,85003087,Publica Group (Support) Limited,R5500-SUP106,TPP - Publica Contract,23/04/2021,"113,678.16 "
https://opendatacommunities.org/doc/district-council/cheltenham ,Cheltenham Borough Council,Development Control - Applications,14086037,HCW000192,Purcell Architecture Ltd,R4400-DEV001,Services - Professional Fees,23/04/2021,"2,500.00 "
https://opendatacommunities.org/doc/district-council/cheltenham ,Cheltenham Borough Council,Income and Expenditure on Investment Properties and Changes in Their Fair Value,14086103,31725,R F Gardiner Limited T/as Gardiners,R2008-FIE040,R & M of Build - Reactive Repairs,23/04/2021,576.96 
https://opendatacommunities.org/doc/district-council/cheltenham ,Cheltenham Borough Council,Development Control - Applications,14085382,5482041,Reach Publishing Services Ltd,R4317-DEV001,Non Staff Advertising,16/04/2021,737.20 
https://opendatacommunities.org/doc/district-council/cheltenham ,Cheltenham Borough Council,Development Control - Applications,14085765,5506983,Reach Publishing Services Ltd,R4317-DEV001,Non Staff Advertising,16/04/2021,659.60 
https://opendatacommunities.org/doc/district-council/cheltenham ,Cheltenham Borough Council,Development Control - Applications,14085880,5517054,Reach Publishing Services Ltd,R4317-DEV001,Non Staff Advertising,16/04/2021,582.00 
https://opendatacommunities.org/doc/district-council/cheltenham ,Cheltenham Borough Council,Development Control - Applications,14086015,5520062,Reach Publishing Services Ltd,R4317-DEV001,Non Staff Advertising,23/04/2021,620.80 
https://opendatacommunities.org/doc/district-council/cheltenham ,Cheltenham Borough Council,Development Control - Applications,14086137,5524372,Reach Publishing Services Ltd,R4317-DEV001,Non Staff Advertising,30/04/2021,814.80 
https://opendatacommunities.org/doc/district-council/cheltenham ,Cheltenham Borough Council,Development Control - Applications,14086285,5529210,Reach Publishing Services Ltd,R4317-DEV001,Non Staff Advertising,30/04/2021,543.20 
https://opendatacommunities.org/doc/district-council/cheltenham ,Cheltenham Borough Council,Printing Services,14085238,101778299,Ricoh UK Limited,R4300-SUP022,Printing - Services,30/04/2021,693.87 
https://opendatacommunities.org/doc/district-council/cheltenham ,Cheltenham Borough Council,Printing Services,14085237,101780075,Ricoh UK Limited,R4300-SUP022,Printing - Services,30/04/2021,763.11 
https://opendatacommunities.org/doc/district-council/cheltenham ,Cheltenham Borough Council,Development costs - Phase 4 Garage Sites,14085934,923551,Rider Levett Bucknall UK Limited (RLB),C1110-CAH063,Employer's Agent,16/04/2021,"1,760.00 "
https://opendatacommunities.org/doc/district-council/cheltenham ,Cheltenham Borough Council,Registration of Electors,14086020,9062578153,Royal Mail (Billing),R4521-ELE001,Postages - franking machine,30/04/2021,"1,066.54 "
https://opendatacommunities.org/doc/district-council/cheltenham ,Cheltenham Borough Council,Council Tax Collection,14085698,9062619031,Royal Mail (Billing),R4521-LTC001,Postages - franking machine,09/04/2021,689.04 
https://opendatacommunities.org/doc/district-council/cheltenham ,Cheltenham Borough Council,Debtors,14085699,9062657890,Royal Mail (Billing),R4520-SUP012,Postages - stamps,09/04/2021,"1,593.39 "
https://opendatacommunities.org/doc/district-council/cheltenham ,Cheltenham Borough Council,Individual Electoral Registration,14086083,9062702915,Royal Mail (Billing),R4521-ELE010,Postages - franking machine,30/04/2021,786.24 
https://opendatacommunities.org/doc/district-council/cheltenham ,Cheltenham Borough Council,Council Tax Collection,14086083,9062702915,Royal Mail (Billing),R4521-LTC001,Postages - franking machine,30/04/2021,597.25 
https://opendatacommunities.org/doc/district-council/cheltenham ,Cheltenham Borough Council,Repairs and Maintenance,14085760,2293,SAS EPC,R2018-HRA100,R & M of Build Voids Energy Performance Certificates,09/04/2021,"1,560.00 "
https://opendatacommunities.org/doc/district-council/cheltenham ,Cheltenham Borough Council,Car Parks - Off Street Operations,14085791,S&B-GB213375,Scheidt & Bachmann UK Ltd,R4003-CPK001,Tools & Equipment - R & M,09/04/2021,"4,378.92 "
https://opendatacommunities.org/doc/district-council/cheltenham ,Cheltenham Borough Council,Cheltenham Depot,14085924,S-SIN1213278,Securitas Security Services Ltd,R2705-ADB103,Security Systems,16/04/2021,"1,583.33 "
https://opendatacommunities.org/doc/district-council/cheltenham ,Cheltenham Borough Council,Cheltenham Depot,14086075,S-SIN1218002,Securitas Security Services Ltd,R2075-ADB103,Grounds Maintenance - Contract,23/04/2021,"1,583.33 "
https://opendatacommunities.org/doc/district-council/cheltenham ,Cheltenham Borough Council,Corporate Policy Making,14085725,220866,Shaw Trust Limited (The),R4531-COR003,IT - Purchase of Software,09/04/2021,"2,000.00 "
https://opendatacommunities.org/doc/district-council/cheltenham ,Cheltenham Borough Council,Internal Improvements - Communal,14086016,9364,Shield Electrical Services Ltd,C1107-CAH035,Building Works,23/04/2021,"15,000.00 "
https://opendatacommunities.org/doc/district-council/cheltenham ,Cheltenham Borough Council,Internal Improvements - Communal,14086016,9364,Shield Electrical Services Ltd,C1107-CAH035,Building Works,23/04/2021,"12,231.39 "
https://opendatacommunities.org/doc/district-council/cheltenham ,Cheltenham Borough Council,Internal Improvements - Communal,14085968,9366,Shield Electrical Services Ltd,C1107-CAH035,Building Works,16/04/2021,"20,854.06 "
https://opendatacommunities.org/doc/district-council/cheltenham ,Cheltenham Borough Council,Internal Improvements - Communal,14086217,9366,Shield Electrical Services Ltd,C1107-CAH035,Building Works,30/04/2021,"20,854.06 "
https://opendatacommunities.org/doc/district-council/cheltenham ,Cheltenham Borough Council,Tourist/Visitor Information Centre/ Marketing Cheltenham wef 2019/20,14085841,NM33978C,Simpleview t/a New Mind Internet Consultancy Limited,R4400-TOU002,Services - Professional Fees,23/04/2021,568.33 
https://opendatacommunities.org/doc/district-council/cheltenham ,Cheltenham Borough Council,Allotments,14085911,S436101,Smith's (Gloucester) Limited,R4323-OPS004,Skip Hire,23/04/2021,"1,230.00 "
https://opendatacommunities.org/doc/district-council/cheltenham ,Cheltenham Borough Council,Allotments,14086097,S437157,Smith's (Gloucester) Limited,R4323-OPS004,Skip Hire,23/04/2021,"1,495.00 "
https://opendatacommunities.org/doc/district-council/cheltenham ,Cheltenham Borough Council,"Paths, Fences & Walls",14085017,51630,Snape Contracting Services Limited,C1107-CAH021,Building Works,16/04/2021,"4,394.28 "
https://opendatacommunities.org/doc/district-council/cheltenham ,Cheltenham Borough Council,Internal Audit,14085901,1013,South West Audit Partnership Limited (SWAP),R4400-SUP010,Services - Professional Fees,16/04/2021,"27,093.50 "
https://opendatacommunities.org/doc/district-council/cheltenham ,Cheltenham Borough Council,Corporate Management,14085884,67507,South West Councils,R4701-COR001,Subscriptions,09/04/2021,"7,355.00 "
https://opendatacommunities.org/doc/district-council/cheltenham ,Cheltenham Borough Council,Bulking Facility,14085837,50742,South West Wood Products Limited,R2703-RYC008,Waste Management,09/04/2021,"1,375.68 "
https://opendatacommunities.org/doc/district-council/cheltenham ,Cheltenham Borough Council,Bulking Facility,14085839,50743,South West Wood Products Limited,R2703-RYC008,Waste Management,09/04/2021,"3,395.52 "
https://opendatacommunities.org/doc/district-council/cheltenham ,Cheltenham Borough Council,Bulking Facility,14085838,50744,South West Wood Products Limited,R2703-RYC008,Waste Management,09/04/2021,695.04 
https://opendatacommunities.org/doc/district-council/cheltenham ,Cheltenham Borough Council,Bulking Facility,14085939,50809,South West Wood Products Limited,R2703-RYC008,Waste Management,16/04/2021,642.72 
https://opendatacommunities.org/doc/district-council/cheltenham ,Cheltenham Borough Council,Bulking Facility,14085940,50907,South West Wood Products Limited,R2703-RYC008,Waste Management,16/04/2021,"1,960.32 "
https://opendatacommunities.org/doc/district-council/cheltenham ,Cheltenham Borough Council,Community Welfare Grants,14085853,INV-0093,Springbank Community Group CIC,R6280-GBD001,Grants,16/04/2021,"2,560.00 "
https://opendatacommunities.org/doc/district-council/cheltenham ,Cheltenham Borough Council,Printing Services,14086031,456939,Springfield Business Papers Limited,R4306-SUP022,Photocopier Charges - Consumables,23/04/2021,"1,210.00 "
https://opendatacommunities.org/doc/district-council/cheltenham ,Cheltenham Borough Council,Environmental Health General,14086233,186,Steve Jakeway,R4300-REG001,Printing - Services,30/04/2021,677.00 
https://opendatacommunities.org/doc/district-council/cheltenham ,Cheltenham Borough Council,Allotments,14085947,INV.1863,Stokes & Sons Security Limited,R4010-OPS004,Materials - Other Materials,16/04/2021,"2,039.75 "
https://opendatacommunities.org/doc/district-council/cheltenham ,Cheltenham Borough Council,Corporate Subscriptions,14085780,68791092,Tameside Metropolitan Borough Council,R4701-DRM008,Subscriptions,09/04/2021,"1,600.00 "
https://opendatacommunities.org/doc/district-council/cheltenham ,Cheltenham Borough Council,Cyber Business Park,14086060,18764,Tetlow King Planning Ltd,R4411-PLP105,Consultancy Fees,23/04/2021,"1,396.25 "
https://opendatacommunities.org/doc/district-council/cheltenham ,Cheltenham Borough Council,Repairs and Maintenance,14085662,DEBT108277,Tewkesbury Borough Council,R2040-HRA100,R & M of Build Central Heating,09/04/2021,"1,848.00 "
https://opendatacommunities.org/doc/district-council/cheltenham ,Cheltenham Borough Council,Supervision and Management,14085706,DEBT108281,Tewkesbury Borough Council,R4420-HRA110,Legal Expenses And Court Costs,09/04/2021,"3,328.00 "
https://opendatacommunities.org/doc/district-council/cheltenham ,Cheltenham Borough Council,Property Services,14085873,DEBT108307,Tewkesbury Borough Council,R4401-SUP025,Services - Fees and Charges,16/04/2021,"3,388.00 "
https://opendatacommunities.org/doc/district-council/cheltenham ,Cheltenham Borough Council,Legal,14085950,DEBT108316,Tewkesbury Borough Council,R4426-SUP004,Legal Expenses,16/04/2021,"3,009.00 "
https://opendatacommunities.org/doc/district-council/cheltenham ,Cheltenham Borough Council,Environmental Health General,14085945,DEBT108318,Tewkesbury Borough Council,R4420-REG001,Legal Expenses And Court Costs,23/04/2021,610.00 
https://opendatacommunities.org/doc/district-council/cheltenham ,Cheltenham Borough Council,Minster Innovation Exchange,14085962,DEBT108339,Tewkesbury Borough Council,C1003-CAP515,Local Land Charges,16/04/2021,"1,975.00 "
https://opendatacommunities.org/doc/district-council/cheltenham ,Cheltenham Borough Council,"Cemetery, Crematorium and Churchyards",14085779,DPIA112045,Tewkesbury Borough Council,R2205-CCM001,Service Charges,09/04/2021,772.00 
https://opendatacommunities.org/doc/district-council/cheltenham ,Cheltenham Borough Council,Cultural - Service Management and Support Services,14085794,70075179,The Cheltenham Trust,R5001-CSM001,TPP - Major External Contractors,16/04/2021,"67,606.75 "
https://opendatacommunities.org/doc/district-council/cheltenham ,Cheltenham Borough Council,Cultural - Service Management and Support Services,14085769,70075526,The Cheltenham Trust,R5001-CSM001,TPP - Major External Contractors,09/04/2021,"7,491.00 "
https://opendatacommunities.org/doc/district-council/cheltenham ,Cheltenham Borough Council,Cultural - Service Management and Support Services,14085768,70075535,The Cheltenham Trust,R5001-CSM001,TPP - Major External Contractors,09/04/2021,"1,478.67 "
https://opendatacommunities.org/doc/district-council/cheltenham ,Cheltenham Borough Council,Cultural - Service Management and Support Services,14086082,70075642,The Cheltenham Trust,R5001-CSM001,TPP - Major External Contractors,23/04/2021,"67,606.75 "
https://opendatacommunities.org/doc/district-council/cheltenham ,Cheltenham Borough Council,Adaptations for the Disabled (CBC),14086008,20/00063/DMTLA FINAL,The Surveying Practice - Client Account,C1107-CAH028,Building Works,16/04/2021,"13,097.90 "
https://opendatacommunities.org/doc/district-council/cheltenham ,Cheltenham Borough Council,Adaptations for the Disabled (CBC),14086236,20/00082/DMTLA FINAL,The Surveying Practice - Client Account,C1107-CAH028,Building Works,30/04/2021,"10,215.00 "
https://opendatacommunities.org/doc/district-council/cheltenham ,Cheltenham Borough Council,Disabled Facility Grants,14086237,21/00004/DMOOC FINAL,The Surveying Practice - Client Account,C5000-CAP221,Grants,30/04/2021,"9,795.05 "
https://opendatacommunities.org/doc/district-council/cheltenham ,Cheltenham Borough Council,Pest Control,14085886,7504,Thermokil Insect Control Services Ltd,R4401-REG018,Services - Fees and Charges,16/04/2021,775.00 
https://opendatacommunities.org/doc/district-council/cheltenham ,Cheltenham Borough Council,Treasury Management,14085801,TLB/LN/CHEL-*DEPOT/03/2021,Tradition UK Limited,R4447-COR006,Brokerage Fees,09/04/2021,747.95 
https://opendatacommunities.org/doc/district-council/cheltenham ,Cheltenham Borough Council,Cyber Business Park,14086064,11305,Transport Planning Association Ltd,R4411-PLP105,Consultancy Fees,23/04/2021,"8,707.50 "
https://opendatacommunities.org/doc/district-council/cheltenham ,Cheltenham Borough Council,Cyber Business Park,14086062,11317,Transport Planning Association Ltd,R4411-PLP105,Consultancy Fees,23/04/2021,"1,081.81 "
https://opendatacommunities.org/doc/district-council/cheltenham ,Cheltenham Borough Council,Cyber Business Park,14086061,11368,Transport Planning Association Ltd,R4411-PLP105,Consultancy Fees,23/04/2021,"3,394.13 "
https://opendatacommunities.org/doc/district-council/cheltenham ,Cheltenham Borough Council,Cyber Business Park,14086063,11467,Transport Planning Association Ltd,R4411-PLP105,Consultancy Fees,23/04/2021,770.53 
https://opendatacommunities.org/doc/district-council/cheltenham ,Cheltenham Borough Council,ICT,14086069,2316133,Trustmarque Solutions Limited,R4535-SUP005,IT - Licences,23/04/2021,"41,360.10 "
https://opendatacommunities.org/doc/district-council/cheltenham ,Cheltenham Borough Council,Household Waste,14085972,60041720,Ubico Limited,R5001-WST001,TPP - Major External Contractors,16/04/2021,"757,200.25 "
https://opendatacommunities.org/doc/district-council/cheltenham ,Cheltenham Borough Council,Household Waste,14086081,60041954,Ubico Limited,R5001-WST001,TPP - Major External Contractors,23/04/2021,"757,200.25 "
https://opendatacommunities.org/doc/district-council/cheltenham ,Cheltenham Borough Council,"Cemetery, Crematorium and Churchyards",14086210,60042058,Ubico Limited,R3203-CCM001,Hire of Other Vehicles,30/04/2021,719.99 
https://opendatacommunities.org/doc/district-council/cheltenham ,Cheltenham Borough Council,Bulky Household Waste,14086056,125,Vision 21,R4401-WST004,Services - Fees and Charges,30/04/2021,"6,287.50 "
https://opendatacommunities.org/doc/district-council/cheltenham ,Cheltenham Borough Council,"Cemetery, Crematorium and Churchyards",14086140,21-03-Cheltenham,Vivedia Limited,R4011-CCM001,Goods For Resale,30/04/2021,"4,653.00 "
https://opendatacommunities.org/doc/district-council/cheltenham ,Cheltenham Borough Council,Supervision and Management,14086029,97360883,Vodafone Limited,R4507-HRA110,Comms - Mobile Telephones,23/04/2021,"2,719.07 "
https://opendatacommunities.org/doc/district-council/cheltenham ,Cheltenham Borough Council,Supervision and Management,14085729,97606027,Vodafone Limited,R4507-HRA110,Comms - Mobile Telephones,09/04/2021,"2,719.07 "
https://opendatacommunities.org/doc/district-council/cheltenham ,Cheltenham Borough Council,New Heating Installations,14086009,46156732,Wales & West Utilities Limited,C1107-CAH009,Building Works,23/04/2021,596.00 
https://opendatacommunities.org/doc/district-council/cheltenham ,Cheltenham Borough Council,Parks & Gardens Operations,14085916,924,Watkins Iles Limited,R2007-OPS001,R & M of Plant Contracts,16/04/2021,535.28 
https://opendatacommunities.org/doc/district-council/cheltenham ,Cheltenham Borough Council,ICT,14086208,33411477,West Oxfordshire District Council,R4548-SUP005,IT - Cabling and Network,30/04/2021,"4,203.26 "
https://opendatacommunities.org/doc/district-council/cheltenham ,Cheltenham Borough Council,Telephones,14086216,33411717,West Oxfordshire District Council,R4515-SUP006,Comms - Telephone Call Charges,30/04/2021,"3,676.54 "
https://opendatacommunities.org/doc/district-council/cheltenham ,Cheltenham Borough Council,Minster Innovation Exchange,14085941,INV-0008,WorkShop Cheltenham Limited,C1100-CAP515,Construction,16/04/2021,"16,761.09 "
https://opendatacommunities.org/doc/district-council/cheltenham ,Cheltenham Borough Council,Community Welfare Grants,14086246,COMMUNITY RESILIENCE2 BETHES,Bethesda Methodist Church,R6280-GBD001,Grants,30/04/2021,"2,000.00 "
https://opendatacommunities.org/doc/district-council/cheltenham ,Cheltenham Borough Council,Sports & Open Spaces Operations,14086119,INV-0205,Willowside Farm,R2075-OPS002,Grounds Maintenance - Contract,23/04/2021,"1,837.00 "
Bank Transactions,,,,,,,,,
https://opendatacommunities.org/doc/district-council/cheltenham ,Cheltenham Borough Council,Cheltenham Municipal Offices,10035760,Bank Transactions,WEST MERCIA ENERGY -ELECTRICITY - MUNICIPAL OFFICES    -01/2/2021 - 28/02/2021,R2100-ADB101,Electricity,13/04/2021,"1,791.81 "
https://opendatacommunities.org/doc/district-council/cheltenham ,Cheltenham Borough Council,Cheltenham Municipal Offices,10035760,Bank Transactions,WEST MERCIA ENERGY - GAS -MUNICIPAL OFFICES  -  31/01/2021- 28/02/2021,R2101-ADB101,Gas,13/04/2021,"2,246.72 "
https://opendatacommunities.org/doc/district-council/cheltenham ,Cheltenham Borough Council,Cheltenham Depot,10035760,Bank Transactions,WEST MERCIA ENERGY -ELECTRICITY - CENTRAL DEPOT -01/2/2021 - 28/02/2021,R2100-ADB103,Electricity,13/04/2021,"4,646.73 "
https://opendatacommunities.org/doc/district-council/cheltenham ,Cheltenham Borough Council,Cheltenham Depot,10035760,Bank Transactions,WEST MERCIA ENERGY - GAS - CENTRAL DEPOT-  31/01/2021- 28/02/2021,R2101-ADB103,Gas,13/04/2021,"1,993.53 "
https://opendatacommunities.org/doc/district-council/cheltenham ,Cheltenham Borough Council,Purchase of Shared Ownership Dwellings,10035610,Bank Transactions,Purchase of REDACTED,C1001-CAH030,Acquisition of Buildings,12/04/2021,"80,000.00 "
https://opendatacommunities.org/doc/district-council/cheltenham ,Cheltenham Borough Council,Phase 3 Development,10035670,Bank Transactions,Purchase of  REDACTED,C1001-CAH039,Acquisition of Buildings,16/04/2021,"102,500.00 "
https://opendatacommunities.org/doc/district-council/cheltenham ,Cheltenham Borough Council,Phase 3 Development,10035704,Bank Transactions,Purchase of Brockhampton Brickyard-plots,C1001-CAH039,Acquisition of Buildings,09/04/2021,"435,736.00 "
https://opendatacommunities.org/doc/district-council/cheltenham ,Cheltenham Borough Council,Phase 3 Development,10035943,Bank Transactions,Purchase of  REDACTED,C1001-CAH039,Acquisition of Buildings,28/04/2021,"160,000.00 "
https://opendatacommunities.org/doc/district-council/cheltenham ,Cheltenham Borough Council,Phase 3 Development,10035979,Bank Transactions,Purchase of  REDACTED,C1001-CAH039,Acquisition of Buildings,30/04/2021,"115,000.00 "
https://opendatacommunities.org/doc/district-council/cheltenham ,Cheltenham Borough Council,Gloucestershire Airport Limited Loan for major runway repairs,10035981,Bank Transactions,Glos Airport Ltd- Capial drawdown loan 1,C5011-CAP516,Other Loans,30/04/2021,"250,000.00 "
https://opendatacommunities.org/doc/district-council/cheltenham ,Cheltenham Borough Council,"Cemetery, Crematorium and Churchyards",10035760,Bank Transactions,WEST MERCIA ENERGY -ELECTRICITY - CEMETERY & CREMATORIUM -01/2/2021 - 28/02/2021,R2100-CCM001,Electricity,13/04/2021,"1,868.29 "
https://opendatacommunities.org/doc/district-council/cheltenham ,Cheltenham Borough Council,"Cemetery, Crematorium and Churchyards",10035760,Bank Transactions,WEST MERCIA ENERGY - GAS - CEMETERY & CREMATORIUM -  31/01/2021- 28/02/2021,R2101-CCM001,Gas,13/04/2021,"2,032.38 "
https://opendatacommunities.org/doc/district-council/cheltenham ,Cheltenham Borough Council,"Cemetery, Crematorium and Churchyards",10035800,Bank Transactions,WEST MERCIA ENERGY -GAS - CEMETERY & CREMATORIUM -30/11/2020-31/12/2020,R2101-CCM001,Gas,21/04/2021,"-1,048.26 "
https://opendatacommunities.org/doc/district-council/cheltenham ,Cheltenham Borough Council,"Cemetery, Crematorium and Churchyards",10035800,Bank Transactions,WEST MERCIA ENERGY -GAS - CEMETERY & CREMATORIUM -31/10/2020-28/02/2021,R2101-CCM001,Gas,21/04/2021,"4,981.88 "
https://opendatacommunities.org/doc/district-council/cheltenham ,Cheltenham Borough Council,"Cemetery, Crematorium and Churchyards",10035800,Bank Transactions,WEST MERCIA ENERGY -GAS - CEMETERY & CREMATORIUM -31/10/2020-30/11/2020,R2101-CCM001,Gas,21/04/2021,"-1,442.27 "
https://opendatacommunities.org/doc/district-council/cheltenham ,Cheltenham Borough Council,"Cemetery, Crematorium and Churchyards",10035678,Bank Transactions,"WATER PLUS 0640142734 - CREMATORIUM CEMETERY, BOLUNCERS LANE, PRESTBURY, CHELTENHAM - WATER CHARGE  - 01/04/2021 - 01/04/2022",R2401-CCM001,Water Services - Metered,15/04/2021,"3,583.68 "
https://opendatacommunities.org/doc/district-council/cheltenham ,Cheltenham Borough Council,"Cemetery, Crematorium and Churchyards",10035678,Bank Transactions,"WATER PLUS 0640142734 - CREMATORIUM CEMETERY, BOLUNCERS LANE, PRESTBURY, CHELTENHAM - SEWERAGE CHARGE  - 01/04/2021 - 01/04/2022",R2402-CCM001,Sewerage and Environmental Services,15/04/2021,"2,872.53 "
https://opendatacommunities.org/doc/district-council/cheltenham ,Cheltenham Borough Council,CCTV,10035760,Bank Transactions,WEST MERCIA ENERGY -ELECTRICITY - CCTV & VARIOUS LOCATIONS  -01/2/2021 - 28/02/2021,R2100-CCT001,Electricity,13/04/2021,584.34 
https://opendatacommunities.org/doc/district-council/cheltenham ,Cheltenham Borough Council,Big Local Project,10035702,Bank Transactions,THE FSA TA UN LTD,R6280-COM104,Grants,15/04/2021,"-4,291.00 "
https://opendatacommunities.org/doc/district-council/cheltenham ,Cheltenham Borough Council,Treasury Management,10035971,Bank Transactions,SERVICE CHARGES REF: 338191783,R4403-COR006,Bank Charges,30/04/2021,587.26 
https://opendatacommunities.org/doc/district-council/cheltenham ,Cheltenham Borough Council,Treasury Management,10035732,Bank Transactions,CARDNET SERVICE CHARGES 169118221 - 500221866,R4428-COR006,Services - credit card charges,16/04/2021,"5,264.42 "
https://opendatacommunities.org/doc/district-council/cheltenham ,Cheltenham Borough Council,Treasury Management,10035732,Bank Transactions,CARDNET SERVICE CHARGES 169118221 - 500701602,R4428-COR006,Services - credit card charges,16/04/2021,"2,530.01 "
https://opendatacommunities.org/doc/district-council/cheltenham ,Cheltenham Borough Council,Treasury Management,10035732,Bank Transactions,CARDNET SERVICE CHARGES 500200738,R4428-COR006,Services - credit card charges,16/04/2021,"1,171.48 "
https://opendatacommunities.org/doc/district-council/cheltenham ,Cheltenham Borough Council,Car Parks - Off Street Operations,10035760,Bank Transactions,WEST MERCIA ENERGY -ELECTRICITY - CAR PARK - GROSVENOR TERRACE - 01/2/2021 - 28/02/2021,R2100-CPK001,Electricity,13/04/2021,928.33 
https://opendatacommunities.org/doc/district-council/cheltenham ,Cheltenham Borough Council,Car Parks - Off Street Operations,10035760,Bank Transactions,WEST MERCIA ENERGY -ELECTRICITY - CAR PARK - REGENT ARCADE- 01/2/2021 - 28/02/2021,R2100-CPK001,Electricity,13/04/2021,822.76 
https://opendatacommunities.org/doc/district-council/cheltenham ,Cheltenham Borough Council,Car Parks - Off Street Operations,10035755,Bank Transactions,S/LINE 26288205 INV 146501074,R4428-CPK001,Services - credit card charges,20/04/2021,671.54 
https://opendatacommunities.org/doc/district-council/cheltenham ,Cheltenham Borough Council,Car Parks - Off Street Operations,10035755,Bank Transactions,S/LINE 31868395 INV 146624376,R4428-CPK001,Services - credit card charges,20/04/2021,510.59 
https://opendatacommunities.org/doc/district-council/cheltenham ,Cheltenham Borough Council,Everyman Theatre,10035814,Bank Transactions,21/22 Grant,R6280-CUL108,Grants,22/04/2021,"195,050.00 "
https://opendatacommunities.org/doc/district-council/cheltenham ,Cheltenham Borough Council,Town Hall Repairs & Maintenance,10035760,Bank Transactions,WEST MERCIA ENERGY -ELECTRICITY - CHELTENHAM TOWN HALL -01/2/2021 - 28/02/2021,R2100-CUL112,Electricity,13/04/2021,"3,058.69 "
https://opendatacommunities.org/doc/district-council/cheltenham ,Cheltenham Borough Council,Town Hall Repairs & Maintenance,10035760,Bank Transactions,WEST MERCIA ENERGY - GAS - CHELTENHAM TOWN HALL -  31/01/2021- 28/02/2021,R2101-CUL112,Gas,13/04/2021,"1,969.64 "
https://opendatacommunities.org/doc/district-council/cheltenham ,Cheltenham Borough Council,Pittville Pump Room Repairs & Maintenance,10035760,Bank Transactions,WEST MERCIA ENERGY -ELECTRICITY - PITVILLE PUMP ROOMS    -01/2/2021 - 28/02/2021,R2100-CUL113,Electricity,13/04/2021,740.18 
https://opendatacommunities.org/doc/district-council/cheltenham ,Cheltenham Borough Council,Pittville Pump Room Repairs & Maintenance,10035760,Bank Transactions,WEST MERCIA ENERGY - GAS -PITTVILLE PUMP ROOMS  -  31/01/2021- 28/02/2021,R2101-CUL113,Gas,13/04/2021,576.67 
https://opendatacommunities.org/doc/district-council/cheltenham ,Cheltenham Borough Council,Art Gallery & Museum Repairs & Maintenance,10035760,Bank Transactions,WEST MERCIA ENERGY -ELECTRICITY -WILSON ART GALLERY & MUSEUM -01/2/2021 - 28/02/2021,R2100-CUL117,Electricity,13/04/2021,"2,566.61 "
https://opendatacommunities.org/doc/district-council/cheltenham ,Cheltenham Borough Council,Art Gallery & Museum Repairs & Maintenance,10035760,Bank Transactions,WEST MERCIA ENERGY - GAS - WILSON ART GALLERY & MUSEUM  31/01/2021- 28/02/2021,R2101-CUL117,Gas,13/04/2021,"1,877.38 "
https://opendatacommunities.org/doc/district-council/cheltenham ,Cheltenham Borough Council,Supervision and Management,10035937,Bank Transactions,OPUS ENERGY CORPORATION - 0921070,R2100-HRA110,Electricity,29/04/2021,"11,818.83 "
https://opendatacommunities.org/doc/district-council/cheltenham ,Cheltenham Borough Council,Supervision and Management,10035760,Bank Transactions,WEST MERCIA ENERGY - GAS - - POPES CLOSE -  31/01/2021- 28/02/2021,R2101-HRA110,Gas,13/04/2021,716.31 
https://opendatacommunities.org/doc/district-council/cheltenham ,Cheltenham Borough Council,Supervision and Management,10035760,Bank Transactions,WEST MERCIA ENERGY - GAS - COOPERS COURT -  31/01/2021- 28/02/2021,R2101-HRA110,Gas,13/04/2021,898.56 
https://opendatacommunities.org/doc/district-council/cheltenham ,Cheltenham Borough Council,Supervision and Management,10035760,Bank Transactions,WEST MERCIA ENERGY - GAS - GILBERT WARD COURT -  31/01/2021- 28/02/2021,R2101-HRA110,Gas,13/04/2021,645.24 
https://opendatacommunities.org/doc/district-council/cheltenham ,Cheltenham Borough Council,Supervision and Management,10035760,Bank Transactions,WEST MERCIA ENERGY - GAS - GOLDFOOT HOUSE -  31/01/2021- 28/02/2021,R2101-HRA110,Gas,13/04/2021,917.03 
https://opendatacommunities.org/doc/district-council/cheltenham ,Cheltenham Borough Council,Supervision and Management,10035760,Bank Transactions,WEST MERCIA ENERGY - GAS - WALLACE HOUSE-  31/01/2021- 28/02/2021,R2101-HRA110,Gas,13/04/2021,998.12 
https://opendatacommunities.org/doc/district-council/cheltenham ,Cheltenham Borough Council,"Rents, Rates, Taxes and Other Charges",10035678,Bank Transactions,"WATER PLUS 0640092547 - COMMUNAL ROOMS, POPES CLOSE, CHELTENHAM, GL50 4BQ- WATER CHARGE  - 01/04/2021 - 01/04/2022",R2400-HRA120,Water Services - Unmetered,15/04/2021,520.13 
https://opendatacommunities.org/doc/district-council/cheltenham ,Cheltenham Borough Council,"Rents, Rates, Taxes and Other Charges",10035678,Bank Transactions,"WATER PLUS 0640142736 - WALLACE HOUSE COMMUNAL ROOMS, 1 WALLACE HOUSE, BUTTERMERE CLOSE, CHELTENHAM GL51 5NZ - SEWERAGE CHARGE - 01/04/2021 - 01/04/2022",R2400-HRA120,Water Services - Unmetered,15/04/2021,741.80 
https://opendatacommunities.org/doc/district-council/cheltenham ,Cheltenham Borough Council,"Rents, Rates, Taxes and Other Charges",10035678,Bank Transactions,"WATER PLUS 0640142736 - WALLACE HOUSE COMMUNAL ROOMS, 1 WALLACE HOUSE, BUTTERMERE CLOSE, CHELTENHAM GL51 5NZ - WATER CHARGE - 01/04/2021 - 01/04/2022",R2400-HRA120,Water Services - Unmetered,15/04/2021,904.55 
https://opendatacommunities.org/doc/district-council/cheltenham ,Cheltenham Borough Council,"Rents, Rates, Taxes and Other Charges",10035678,Bank Transactions,"WATER PLUS 0640142737 - COMMUNAL ROOMS, COOPERS COURT, CHURCH STREET, CHARLTON KINGS, CHELTENHAM - SEWERAGE CHARGE  - 01/04/2021 - 01/04/2022",R2400-HRA120,Water Services - Unmetered,15/04/2021,585.52 
https://opendatacommunities.org/doc/district-council/cheltenham ,Cheltenham Borough Council,"Rents, Rates, Taxes and Other Charges",10035678,Bank Transactions,"WATER PLUS 0640142737 - COMMUNAL ROOMS, COOPERS COURT, CHURCH STREET, CHARLTON KINGS, CHELTENHAM - WATER CHARGE  - 01/04/2021 - 01/04/2022",R2400-HRA120,Water Services - Unmetered,15/04/2021,708.04 
https://opendatacommunities.org/doc/district-council/cheltenham ,Cheltenham Borough Council,Recreation Centre Repairs & Maintenance,10035760,Bank Transactions,WEST MERCIA ENERGY -ELECTRICITY - LEISURE CENTRE - TOMMY TAYLORS LANE   -01/2/2021 - 28/02/2021,R2100-REC111,Electricity,13/04/2021,"12,010.06 "
https://opendatacommunities.org/doc/district-council/cheltenham ,Cheltenham Borough Council,Recreation Centre Repairs & Maintenance,10035760,Bank Transactions,WEST MERCIA ENERGY - GAS - LEISURE CENTRE- TOMMY TAYLORS LANE  -  31/01/2021- 28/02/2021,R2101-REC111,Gas,13/04/2021,"4,875.80 "
https://opendatacommunities.org/doc/district-council/cheltenham ,Cheltenham Borough Council,Prince of Wales Stadium Repairs & Maintenance,10035800,Bank Transactions,WEST MERCIA ENERGY - ELECTRICITY -PRINCE OF WALES STADIUM  - 01/01/2021-31/01/2021,R2100-REC112,Electricity,21/04/2021,"2,587.98 "
https://opendatacommunities.org/doc/district-council/cheltenham ,Cheltenham Borough Council,Prince of Wales Stadium Repairs & Maintenance,10035734,Bank Transactions,"WATER PLUS 0474006690 - PRINCE OF WALES STADIUM CLUB ROOM, TOMMY TAYLORS LANE, CHELTENHAM - DRAINAGE CHARGES - 01/01/2021 - 01/04/2021",R2402-REC112,Sewerage and Environmental Services,19/04/2021,925.04 
https://opendatacommunities.org/doc/district-council/cheltenham ,Cheltenham Borough Council,Telephones,10035688,Bank Transactions,VODAFONE CORPORATION 02442783M857567 - INVOICE 97593797,R4507-SUP006,Comms - Mobile Telephones,07/04/2021,"2,694.75 "
https://opendatacommunities.org/doc/district-council/cheltenham ,Cheltenham Borough Council,Telephones,10035647,Bank Transactions,BRITISH TELECOM - VP31400270Q07601 - INVOICE Q076 DS,R4515-SUP006,Comms - Telephone Call Charges,12/04/2021,"7,870.46 "
